bitfinex/quotes_BTCUSD_20220211
["timestamp","ask_amount","ask_price","bid_price","bid_amount"]
[1644599873992,2.23165303,43620.0,43616.0,0.05]
[1644599874192,2.23234548,43620.0,43616.0,0.05069252]
[1644599874595,0.31769714,43617.0,43616.0,0.05069252]
[1644599874793,2.23234548,43620.0,43616.0,0.05069252]
[1644599874991,0.05733742,43618.0,43616.0,0.05069252]
[1644599875192,0.05733742,43618.0,43616.0,0.05]
[1644599875395,0.05733742,43618.0,43616.0,0.05069252]
[1644599876194,0.33404706,43618.0,43616.0,0.05069252]
[1644599876445,0.33404706,43618.0,43616.0,0.05]
[1644599876446,0.10733742,43618.0,43616.0,0.05]
[1644599877446,0.25348271,43617.0,43616.0,0.05]
[1644599879445,1.89043178,43618.0,43616.0,0.05]
[1644599879748,0.17201517,43629.0,43618.0,0.5]
[1644599879948,0.19511825,43640.0,43627.0,0.05544415]
[1644599880210,0.01091863,43643.0,43634.0,0.05]
[1644599880402,0.01091863,43643.0,43634.0,0.0958]
[1644599880605,0.01091863,43643.0,43635.0,0.05]
[1644599880806,0.01091863,43643.0,43634.0,0.210402]
[1644599880807,0.01091863,43643.0,43636.0,0.0458]
[1644599881002,0.01091863,43643.0,43637.0,0.0458]
[1644599881803,0.31942079,43642.0,43637.0,0.0458]
[1644599882005,0.22868224,43640.0,43637.0,0.0458]
[1644599882404,0.27868224,43640.0,43637.0,0.0458]
[1644599882804,0.32295803,43638.0,43637.0,0.0458]
[1644599883006,0.32295803,43638.0,43623.0,0.343831]
[1644599883007,0.06714721,43629.0,43624.0,0.4204]
[1644599883210,0.06714721,43629.0,43623.0,0.05]
[1644599883805,0.33010049,43626.0,43623.0,0.05]
[1644599884041,0.00069276,43628.0,43623.0,0.05]
[1644599884241,0.00069276,43628.0,43623.0,0.05020942]
[1644599884842,0.59146942,43631.0,43623.0,0.05020942]
[1644599885044,0.00069276,43628.0,43623.0,0.05020942]
[1644599885243,0.26552865,43627.0,43623.0,0.10020942]
[1644599885443,0.3462973,43627.0,43623.0,0.10020942]
[1644599886243,0.34699006,43627.0,43623.0,0.05020942]
[1644599886448,0.323184,43625.0,43623.0,0.05020942]
[1644599886644,0.34699006,43627.0,43621.0,0.00020942]
[1644599886646,0.368984,43624.0,43621.0,0.00020942]
[1644599886844,0.323184,43622.0,43617.0,0.00069293]
[1644599887043,0.0458,43621.0,43617.0,0.00069293]
[1644599887243,0.08974771,43619.0,43616.0,0.00020942]
[1644599887443,0.50218749,43617.0,43615.0,0.00130942]
[1644599887703,0.28938447,43617.0,43615.0,0.0011]
[1644599888100,0.39068704,43616.0,43615.0,0.0011]
[1644599888298,0.71389504,43616.0,43615.0,0.0011]
[1644599888603,0.49068704,43616.0,43615.0,0.0011]
[1644599888998,0.369008,43616.0,43615.0,0.0011]
[1644599889198,0.0458,43616.0,43615.0,0.0011]
[1644599890200,0.04549274,43616.0,43615.0,0.0011]
[1644599890804,0.04549274,43616.0,43612.0,0.0003023]
[1644599891002,0.04549274,43616.0,43614.0,0.00020945]
[1644599891205,0.04549274,43616.0,43613.0,0.00069288]
[1644599891445,0.04549274,43616.0,43613.0,0.00090233]
[1644599892044,0.04549274,43616.0,43613.0,0.00020945]
[1644599892244,0.27319274,43616.0,43612.0,0.00051175]
[1644599896896,0.27319274,43616.0,43612.0,0.0003023]
[1644599897094,0.2277,43616.0,43612.0,0.0003023]
[1644599900149,0.2277,43616.0,43612.0,0.0503023]
[1644599900549,0.2277,43616.0,43612.0,0.0003023]
[1644599900750,0.2277,43616.0,43612.0,0.1076353]
[1644599901050,0.2274242,43616.0,43612.0,0.0003023]
[1644599902150,0.2274242,43616.0,43613.0,0.05734]
[1644599902352,0.323208,43615.0,43612.0,0.0003023]
[1644599902550,0.323208,43615.0,43611.0,0.0100878]
[1644599902806,0.323208,43615.0,43611.0,0.00939541]
[1644599903005,0.323208,43615.0,43611.0,0.0100878]
[1644599903502,0.323208,43614.0,43611.0,0.0100878]
[1644599903905,0.2274242,43616.0,43611.0,0.0100878]
[1644599904103,0.2274242,43616.0,43611.0,0.00939541]
[1644599904504,0.2274242,43616.0,43611.0,0.06673841]
[1644599905504,0.2274242,43616.0,43611.0,0.06697551]
[1644599906004,0.2274242,43616.0,43611.0,0.06718468]
[1644599906452,0.2274242,43616.0,43611.0,0.06694758]
[1644599906654,0.2274242,43616.0,43611.0,0.06718468]
[1644599906858,0.2274242,43616.0,43611.0,0.11718468]
[1644599907255,0.4372025,43616.0,43611.0,0.00984168]
[1644599907655,0.4372025,43616.0,43611.0,0.00960458]
[1644599907855,0.4372025,43616.0,43611.0,0.01029594]
[1644599908965,0.4372025,43616.0,43607.0,0.42]
[1644599908966,1.373208,43612.0,43602.0,0.114708]
[1644599909161,1.373208,43612.0,43601.0,0.01]
[1644599909162,1.430568,43612.0,43611.0,0.00069136]
[1644599909360,1.580568,43612.0,43611.0,0.00069136]
[1644599909961,1.1,43612.0,43611.0,0.00069136]
[1644599910210,0.0958,43612.0,43611.0,0.040415]
[1644599910405,0.0958,43612.0,43602.0,0.114704]
[1644599910406,0.0458,43612.0,43609.0,0.00023678]
[1644599910605,0.38760459,43613.0,43609.0,0.00023678]
[1644599910806,0.323208,43612.0,43609.0,0.00023678]
[1644599911004,0.53340459,43613.0,43609.0,0.00023678]
[1644599911005,0.43340459,43613.0,43609.0,0.00023678]
[1644599911205,0.30080838,43612.0,43609.0,0.00023678]
[1644599911406,0.35080838,43612.0,43602.0,0.114704]
[1644599911705,0.19465754,43609.0,43608.0,0.00023678]
[1644599911910,0.47768363,43609.0,43608.0,0.00023678]
[1644599912505,0.47768363,43609.0,43602.0,0.164704]
[1644599912705,0.05,43608.0,43606.0,0.00069105]
[1644599913705,0.05,43608.0,43602.0,0.164704]
[1644599913952,0.25686154,43605.0,43604.0,0.042656]
[1644599914655,0.323208,43604.0,43601.0,0.01]
[1644599914853,0.323208,43604.0,43601.0,0.067364]
[1644599915052,0.323208,43604.0,43602.0,0.00069107]
[1644599915552,0.39304167,43604.0,43602.0,0.00069107]
[1644599916052,0.39304167,43604.0,43601.0,0.067364]
[1644599916251,0.323208,43602.0,43601.0,0.01069108]
[1644599916654,0.63630538,43602.0,43601.0,0.01069108]
[1644599917260,0.63630538,43602.0,43601.0,0.01]
[1644599917702,0.323208,43602.0,43601.0,0.01]
[1644599920897,0.373208,43602.0,43601.0,0.01]
[1644599921545,0.65377618,43602.0,43601.0,0.01]
[1644599921746,0.64791755,43602.0,43601.0,0.01]
[1644599921947,0.36742139,43602.0,43601.0,0.01]
[1644599922148,0.64088232,43602.0,43601.0,0.01]
[1644599922353,0.59452139,43602.0,43601.0,0.01]
[1644599922750,0.87176525,43602.0,43601.0,0.01]
[1644599923148,1.15746993,43602.0,43601.0,0.01]
[1644599923351,1.37469302,43602.0,43601.0,0.01]
[1644599923550,1.42469302,43602.0,43601.0,0.01]
[1644599924249,1.37469302,43602.0,43601.0,0.01]
[1644599925052,1.09744916,43602.0,43601.0,0.01]
[1644599925296,1.36986877,43602.0,43601.0,0.01]
[1644599925496,1.02602607,43602.0,43601.0,0.01]
[1644599926095,0.31711339,43602.0,43601.0,0.01]
[1644599926297,0.27131339,43602.0,43601.0,0.01]
[1644599926900,0.34616605,43602.0,43601.0,0.01]
[1644599927098,0.94703636,43602.0,43601.0,0.01]
[1644599927300,1.04703636,43602.0,43601.0,0.01]
[1644599927499,1.33220402,43602.0,43601.0,0.01]
[1644599927707,1.23220402,43602.0,43601.0,0.01]
[1644599927900,1.04703636,43602.0,43601.0,0.01]
[1644599928701,1.09703636,43602.0,43601.0,0.01]
[1644599928958,1.09703636,43602.0,43601.0,0.01006311]
[1644599929562,1.04703636,43602.0,43601.0,0.01006311]
[1644599932564,0.3453335,43596.0,43594.0,0.114742]
[1644599932806,0.45270598,43596.0,43594.0,0.114742]
[1644599933504,0.45270598,43596.0,43592.0,0.058477]
[1644599933705,0.3784405,43594.0,43592.0,0.0011]
[1644599933906,0.323208,43593.0,43592.0,0.0011]
[1644599936212,0.57096781,43593.0,43592.0,0.0011]
[1644599936463,0.57096781,43593.0,43576.0,0.00124704]
[1644599936464,0.2,43590.0,43576.0,0.00124704]
[1644599936653,0.2,43590.0,43567.0,0.00109968]
[1644599936654,0.05,43580.0,43567.0,0.00109968]
[1644599936854,0.057408,43577.0,43566.0,0.04627568]
[1644599937056,0.05,43574.0,43566.0,0.04627568]
[1644599937252,0.41952844,43567.0,43566.0,0.04627568]
[1644599937455,1.20908933,43567.0,43566.0,5.68e-06]
[1644599937654,1.30908933,43567.0,43566.0,5.68e-06]
[1644599937854,1.36650633,43567.0,43566.0,5.68e-06]
[1644599938054,1.36650633,43567.0,43560.0,0.0011]
[1644599938055,0.323208,43566.0,43560.0,0.0011]
[1644599938258,0.0958,43565.0,43560.0,0.0011]
[1644599938454,0.323208,43564.0,43560.0,0.0011]
[1644599938653,0.0458,43563.0,43560.0,0.0011]
[1644599938855,0.323208,43562.0,43560.0,0.0011]
[1644599939053,0.41507885,43562.0,43560.0,0.0011]
[1644599939254,0.91793372,43562.0,43560.0,0.0011]
[1644599939454,0.59472572,43562.0,43560.0,0.0011]
[1644599939655,1.17218745,43562.0,43560.0,0.0011]
[1644599939855,0.58875084,43562.0,43560.0,0.0011]
[1644599940312,0.58875084,43562.0,43561.0,0.005]
[1644599940510,0.35899341,43562.0,43561.0,0.005]
[1644599940717,0.0458,43562.0,43561.0,0.005]
[1644599940915,0.0458,43562.0,43561.0,0.045531]
[1644599942113,0.0458,43562.0,43561.0,0.005]
[1644599942714,0.0458,43562.0,43561.0,0.045531]
[1644599943015,0.0458,43562.0,43561.0,0.005]
[1644599943216,0.0458,43562.0,43561.0,0.045531]
[1644599943417,0.45707804,43570.0,43561.0,0.045531]
[1644599943418,0.0458,43570.0,43561.0,0.045531]
[1644599943614,0.0458,43570.0,43561.0,0.005]
[1644599944050,0.0458,43570.0,43563.0,0.0580896]
[1644599944249,0.15705653,43574.0,43568.0,0.057401]
[1644599944250,0.36321201,43574.0,43568.0,0.057401]
[1644599944450,0.76321201,43574.0,43568.0,0.057401]
[1644599944654,0.369008,43573.0,43563.0,0.0006876]
[1644599944850,0.1458,43573.0,43563.0,0.0006876]
[1644599945049,0.1458,43573.0,43561.0,0.00506093]
[1644599945351,0.1458,43573.0,43561.0,0.16987293]
[1644599945352,0.29008947,43563.0,43561.0,0.16987293]
[1644599945748,0.357412,43570.0,43561.0,0.16987293]
[1644599945951,0.457412,43570.0,43561.0,0.16987293]
[1644599946149,0.357412,43570.0,43561.0,0.16987293]
[1644599946352,0.28137583,43572.0,43561.0,0.16987293]
[1644599946551,0.28137583,43572.0,43563.0,0.00064139]
[1644599946552,0.07370016,43572.0,43563.0,0.00064139]
[1644599946750,0.3021867,43569.0,43563.0,0.00064139]
[1644599947149,0.3021867,43569.0,43564.0,0.25269515]
[1644599947350,0.323208,43568.0,43564.0,0.05]
[1644599947712,0.11481281,43573.0,43564.0,0.05]
[1644599947713,0.20004,43578.0,43569.0,0.35]
[1644599947903,0.22982471,43586.0,43577.0,0.107385]
[1644599948103,0.22982471,43586.0,43578.0,0.040502]
[1644599948302,0.00064102,43589.0,43580.0,0.05]
[1644599948506,0.00064102,43589.0,43582.0,0.20747592]
[1644599948507,0.27141317,43586.0,43582.0,0.20747592]
[1644599948703,0.35385275,43586.0,43584.0,0.040496]
[1644599948904,0.35385275,43586.0,43583.0,0.107376]
[1644599949104,0.35385275,43586.0,43583.0,0.05]
[1644599949305,0.35385275,43586.0,43583.0,0.05020785]
[1644599949504,0.35385275,43586.0,43583.0,0.00020785]
[1644599949703,0.35385275,43586.0,43582.0,0.00062903]
[1644599949904,0.35385275,43586.0,43579.0,0.00020785]
[1644599950103,0.40385275,43586.0,43582.0,0.00062903]
[1644599951008,0.40385275,43586.0,43579.0,0.00020785]
[1644599951009,0.40385275,43586.0,43580.0,0.057388]
[1644599951205,0.40385275,43586.0,43582.0,0.00062903]
[1644599952352,0.40385275,43586.0,43581.0,0.00020785]
[1644599952552,0.28551133,43584.0,43582.0,0.00060827]
[1644599952756,0.28551133,43584.0,43578.0,0.00267312]
[1644599952757,0.00121653,43581.0,43578.0,0.00267312]
[1644599952953,0.323232,43580.0,43579.0,0.00020785]
[1644599953153,0.323232,43580.0,43578.0,0.00246527]
[1644599953353,0.43209451,43579.0,43578.0,0.00246527]
[1644599953755,1.19843954,43579.0,43578.0,0.00246527]
[1644599954453,0.80300544,43579.0,43578.0,0.00246527]
[1644599955053,1.11844933,43579.0,43578.0,0.00246527]
[1644599955500,1.36701469,43579.0,43578.0,0.00246527]
[1644599955703,1.36701469,43579.0,43578.0,5.27e-06]
[1644599955704,0.78447589,43579.0,43578.0,5.27e-06]
[1644599956699,1.14624823,43579.0,43578.0,5.27e-06]
[1644599956902,1.14624823,43579.0,43576.0,1.285e-05]
[1644599957102,1.14624823,43579.0,43562.0,0.00020785]
[1644599957103,0.380645,43578.0,43562.0,0.00020785]
[1644599957304,0.05742,43573.0,43570.0,0.00020785]
[1644599957500,0.81489206,43572.0,43569.0,0.00256564]
[1644599957702,0.20064,43571.0,43569.0,0.00256564]
[1644599957905,0.71185464,43570.0,43569.0,0.00256564]
[1644599958102,1.01819655,43570.0,43569.0,0.00256564]
[1644599958302,1.16819655,43570.0,43562.0,0.00020785]
[1644599958502,1.16819655,43570.0,43561.0,0.00520785]
[1644599958503,0.323232,43569.0,43561.0,0.00520785]
[1644599958709,0.0458,43568.0,43565.0,0.2197445]
[1644599958956,0.05,43570.0,43565.0,0.2197445]
[1644599959155,0.05,43571.0,43565.0,0.2197445]
[1644599959355,0.05740639,43569.0,43565.0,0.2197445]
[1644599959755,0.1,43573.0,43566.0,0.097928]
[1644599959955,0.05,43573.0,43567.0,0.097922]
[1644599960155,0.05,43573.0,43567.0,0.00020785]
[1644599960455,0.05740353,43572.0,43566.0,0.00020785]
[1644599960655,0.05740353,43572.0,43565.0,0.2697445]
[1644599960958,0.2262,43570.0,43568.0,0.00023112]
[1644599961154,0.2762,43570.0,43568.0,0.00023112]
[1644599961956,0.2762,43570.0,43567.0,0.30070555]
[1644599961957,0.05740876,43569.0,43567.0,0.30070555]
[1644599962155,0.05740876,43569.0,43567.0,0.00068728]
[1644599962560,0.03698325,43563.0,43561.0,0.005]
[1644599962808,0.03698325,43563.0,43562.0,0.097934]
[1644599963004,0.03698325,43563.0,43561.0,0.005]
[1644599964605,0.03698325,43563.0,43562.0,0.097943]
[1644599964806,0.03698325,43563.0,43561.0,0.005]
[1644599965006,0.03698325,43563.0,43562.0,0.34129078]
[1644599965205,0.03698325,43563.0,43562.0,0.39129078]
[1644599965812,0.03698325,43563.0,43561.0,0.005]
[1644599966109,0.40030027,43562.0,43561.0,0.005]
[1644599966307,0.12706827,43562.0,43561.0,0.005]
[1644599966760,0.40911632,43562.0,43561.0,0.005]
[1644599966961,0.50911632,43562.0,43561.0,0.005]
[1644599967161,0.94719932,43562.0,43561.0,0.005]
[1644599967960,1.25976737,43562.0,43561.0,0.005]
[1644599968961,0.93653537,43562.0,43561.0,0.005]
[1644599969661,1.25976737,43562.0,43561.0,0.005]
[1644599969861,0.93653537,43562.0,43561.0,0.005]
[1644599970062,1.25976737,43562.0,43561.0,0.005]
[1644599970302,0.93653537,43562.0,43561.0,0.005]
[1644599970502,1.25976737,43562.0,43561.0,0.005]
[1644599970701,0.93653537,43562.0,43561.0,0.005]
[1644599970904,0.83234832,43562.0,43561.0,0.005]
[1644599971102,0.78175258,43562.0,43561.0,0.005]
[1644599971708,1.373232,43561.0,43553.0,0.00274968]
[1644599971905,0.38066922,43557.0,43553.0,0.00274968]
[1644599972103,0.0458,43556.0,43553.0,0.00274968]
[1644599972303,0.10743722,43557.0,43553.0,0.00274968]
[1644599972803,0.10743722,43557.0,43550.0,0.057525]
[1644599973202,0.10743722,43557.0,43553.0,0.31678009]
[1644599973203,0.16487322,43557.0,43553.0,0.31678009]
[1644599974051,0.16487322,43557.0,43554.0,0.00023017]
[1644599974052,0.10743722,43557.0,43554.0,0.00023017]
[1644599974253,0.05,43558.0,43554.0,0.00023017]
[1644599974450,0.05741884,43559.0,43554.0,0.28876575]
[1644599974650,0.1,43561.0,43556.0,0.097965]
[1644599974850,0.05,43561.0,43556.0,0.097965]
[1644599975050,0.05,43561.0,43556.0,0.057416]
[1644599975249,0.05741936,43560.0,43556.0,0.00068733]
[1644599976251,0.05741936,43560.0,43555.0,0.05962]
[1644599976552,0.05741936,43560.0,43556.0,0.00068734]
[1644599977552,0.05741936,43560.0,43555.0,0.0022]
[1644599977818,0.05741936,43560.0,43556.0,0.00068734]
[1644599978320,0.05741936,43560.0,43556.0,0.00089497]
[1644599978719,0.05741936,43560.0,43556.0,0.00020763]
[1644599978920,0.11484036,43560.0,43556.0,0.00068734]
[1644599979119,0.11484036,43560.0,43556.0,0.00089497]
[1644599979323,0.34094312,43562.0,43558.0,0.097957]
[1644599979324,0.28351504,43562.0,43558.0,0.097957]
[1644599979524,0.2261,43562.0,43557.0,0.09816563]
[1644599979721,0.2261,43562.0,43558.0,0.05]
[1644599979925,0.2261,43562.0,43559.0,0.097953]
[1644599980123,0.2261,43562.0,43559.0,0.143753]
[1644599980324,0.2261,43562.0,43561.0,0.097947]
[1644599980523,0.2261,43562.0,43561.0,0.147947]
[1644599980723,0.2261,43562.0,43561.0,0.147946]
[1644599981554,0.2261,43562.0,43561.0,0.05]
[1644599981753,0.2261,43562.0,43560.0,0.34829684]
[1644599981956,0.2261,43562.0,43560.0,0.34808921]
[1644599982854,0.2261,43562.0,43561.0,0.19189094]
[1644599983254,0.2261,43562.0,43561.0,0.28983694]
[1644599983455,0.2261,43562.0,43561.0,0.33983694]
[1644599984056,0.2261,43562.0,43561.0,0.28983694]
[1644599984562,0.00068723,43565.0,43562.0,1.30534]
[1644599984758,0.3,43580.0,43564.0,0.147935]
[1644599984958,0.00121653,43581.0,43570.0,0.097909]
[1644599985212,0.00029912,43581.0,43571.0,0.0458]
[1644599985409,0.00029912,43581.0,43578.0,0.22928616]
[1644599985608,0.00029912,43581.0,43579.0,0.49373136]
[1644599985806,0.00029912,43581.0,43579.0,0.39585036]
[1644599986209,0.31313711,43581.0,43579.0,0.39585036]
[1644599986406,0.31313711,43581.0,43579.0,0.057381]
[1644599986407,0.00029912,43581.0,43579.0,0.057381]
[1644599986606,0.00029912,43581.0,43578.0,0.03]
[1644599986806,0.00029912,43581.0,43577.0,0.057394]
[1644599987008,0.00029912,43581.0,43578.0,0.097883]
[1644599987209,0.00029912,43581.0,43577.0,0.057394]
[1644599987406,0.00098635,43581.0,43578.0,0.30512007]
[1644599988107,0.00098635,43581.0,43578.0,0.41989007]
[1644599988305,0.323232,43580.0,43578.0,0.11477]
[1644599988506,0.323232,43580.0,43570.0,0.057388]
[1644599988507,0.323232,43580.0,43569.0,0.00020763]
[1644599988711,0.05,43579.0,43568.0,0.0458]
[1644599988957,0.30115976,43579.0,43568.0,0.0458]
[1644599989157,0.30115976,43579.0,43568.0,0.04600763]
[1644599989158,0.05,43578.0,43568.0,0.04600763]
[1644599989357,0.30115976,43579.0,43575.0,0.057395]
[1644599989559,0.25115976,43579.0,43575.0,0.057395]
[1644599989760,0.25115976,43579.0,43575.0,0.107395]
[1644599990159,0.05,43580.0,43575.0,0.107395]
[1644599990657,0.00029912,43581.0,43575.0,0.107395]
[1644599991057,0.00068724,43580.0,43575.0,0.107395]
[1644599991658,0.2608698,43579.0,43575.0,0.107395]
[1644599992059,0.3882927,43579.0,43575.0,0.107395]
[1644599992265,0.3882927,43579.0,43568.0,0.057404]
[1644599992266,0.057404,43578.0,43568.0,0.057404]
[1644599992460,0.05740563,43575.0,43568.0,0.057404]
[1644599992711,0.11480799,43567.0,43565.0,0.00020763]
[1644599992903,0.11480799,43567.0,43564.0,0.05020763]
[1644599993103,0.11480799,43567.0,43564.0,0.35223059]
[1644599993302,0.11480799,43567.0,43564.0,0.3293763]
[1644599997452,0.11480799,43567.0,43564.0,0.30223059]
[1644599998454,0.11480799,43567.0,43564.0,0.00020763]
[1644599998655,0.2713585,43566.0,43563.0,0.11501563]
[1644599998855,0.2713585,43566.0,43560.0,0.04001563]
[1644599999055,0.06706381,43563.0,43558.0,0.114828]
[1644599999455,0.06706381,43563.0,43560.0,0.28805584]
[1644599999658,0.11549529,43567.0,43561.0,0.057417]
[1644600000400,0.11480799,43567.0,43561.0,0.057417]
[1644600000602,0.00068731,43566.0,43561.0,0.057417]
[1644600000800,0.00068731,43566.0,43562.0,0.097945]
[1644600001005,0.00068731,43566.0,43565.0,0.05]
[1644600001201,0.00068731,43566.0,43565.0,0.147932]
[1644600001418,0.00068731,43566.0,43565.0,0.197932]
[1644600001600,0.11480799,43567.0,43566.0,0.097928]
[1644600002401,0.11480799,43567.0,43566.0,0.36066692]
[1644600006057,0.02181096,43567.0,43566.0,0.36066692]
[1644600006457,0.02181096,43567.0,43566.0,0.143728]
[1644600006659,0.02181096,43567.0,43564.0,0.05739]
[1644600010108,0.02181096,43567.0,43566.0,0.00063475]
[1644600011108,0.14772049,43567.0,43566.0,0.00063475]
[1644600011564,0.50133478,43567.0,43566.0,0.00063475]
[1644600011961,0.44392178,43567.0,43566.0,0.00063475]
[1644600012560,0.37542525,43567.0,43566.0,0.00063475]
[1644600012963,0.07181096,43567.0,43566.0,0.00063475]
[1644600013165,0.02181096,43567.0,43566.0,0.00063475]
[1644600013961,0.31267969,43567.0,43566.0,0.00063475]
[1644600014162,0.07181096,43567.0,43566.0,0.00063475]
[1644600014363,0.02181096,43567.0,43566.0,0.00063475]
[1644600014766,0.43233252,43567.0,43566.0,0.00063475]
[1644600014967,0.73233252,43567.0,43566.0,0.00063475]
[1644600015209,0.0012695,43565.0,43564.0,0.00066128]
[1644600015402,0.0012695,43565.0,43564.0,0.0008681]
[1644600015601,0.0012695,43565.0,43564.0,0.00066128]
[1644600017400,0.27480974,43565.0,43564.0,0.00066128]
[1644600017600,0.27262282,43565.0,43564.0,0.00066128]
[1644600018202,0.27643157,43565.0,43564.0,0.00066128]
[1644600018606,0.0012695,43565.0,43564.0,0.00066128]
[1644600018805,0.27383349,43565.0,43564.0,0.00066128]
[1644600019671,0.46974219,43565.0,43564.0,0.00066128]
[1644600019869,0.37383349,43565.0,43564.0,0.00066128]
[1644600020369,0.39582328,43562.0,43558.0,0.00020682]
[1644600020570,0.44582328,43562.0,43557.0,0.00068795]
[1644600020768,0.59582328,43562.0,43557.0,0.00020682]
[1644600020973,0.59582328,43562.0,43557.0,0.0006879]
[1644600021169,0.0857347,43558.0,43557.0,0.00089472]
[1644600021369,0.0857347,43558.0,43557.0,0.0006879]
[1644600021570,0.0857347,43558.0,43557.0,0.0986399]
[1644600021769,0.1931557,43558.0,43557.0,0.0986399]
[1644600021970,0.1931557,43558.0,43556.0,0.00103565]
[1644600022170,0.1931557,43558.0,43556.0,0.00082883]
[1644600023017,0.12268909,43553.0,43552.0,0.212819]
[1644600023319,0.17268909,43553.0,43552.0,0.114846]
[1644600023520,0.69198206,43553.0,43548.0,0.00053064]
[1644600023720,0.69198206,43553.0,43538.0,0.0011]
[1644600023721,0.69198206,43553.0,43517.0,0.0006508]
[1644600023722,0.15,43545.0,43517.0,0.0006508]
[1644600023921,1.05,43548.0,43505.0,0.13745026]
[1644600023922,0.05,43522.0,43505.0,0.13745026]
[1644600024122,0.05,43522.0,43501.0,0.03002413]
[1644600024123,0.323244,43517.0,43501.0,0.03002413]
[1644600024320,0.05,43513.0,43501.0,0.03002413]
[1644600024515,0.5727,43502.0,43501.0,0.03002413]
[1644600024718,0.6174,43502.0,43501.0,0.03002413]
[1644600024918,0.6674,43502.0,43501.0,0.03002413]
[1644600025117,0.81600685,43502.0,43501.0,0.03002413]
[1644600025417,0.81600685,43502.0,43497.0,0.0013535]
[1644600025418,0.103299,43502.0,43497.0,0.0013535]
[1644600025818,0.057499,43502.0,43497.0,0.0013535]
[1644600026015,0.0954754,43511.0,43501.0,0.33906423]
[1644600026218,0.4989,43510.0,43508.0,0.21808111]
[1644600026658,0.5489,43510.0,43508.0,0.21808111]
[1644600027058,0.09813064,43509.0,43508.0,0.21808111]
[1644600027257,0.94918145,43509.0,43508.0,0.21808111]
[1644600027457,0.55,43509.0,43508.0,0.21808111]
[1644600027657,0.65,43509.0,43508.0,0.21808111]
[1644600027858,0.65,43509.0,43507.0,0.00068815]
[1644600028057,0.16500674,43508.0,43500.0,0.0001]
[1644600028257,0.05,43506.0,43500.0,0.0001]
[1644600028457,1.0,43507.0,43500.0,0.0001]
[1644600028659,0.5,43507.0,43501.0,0.0458]
[1644600028862,0.5,43507.0,43504.0,0.08256682]
[1644600029059,0.29563277,43518.0,43505.0,0.39802111]
[1644600029257,0.29563277,43518.0,43516.0,0.24765845]
[1644600029457,0.29563277,43518.0,43505.0,0.39802111]
[1644600029458,0.5,43517.0,43505.0,0.39802111]
[1644600029658,0.8,43517.0,43505.0,0.0458]
[1644600030208,0.79972,43517.0,43505.0,0.0208]
[1644600030603,0.89972,43517.0,43509.0,0.25187001]
[1644600030802,0.59972,43517.0,43509.0,0.0006864]
[1644600031001,0.9245932,43517.0,43511.0,0.05]
[1644600031203,0.05,43515.0,43509.0,0.0006864]
[1644600031405,0.5,43514.0,43510.0,0.06406921]
[1644600031607,0.55748845,43514.0,43510.0,0.06406921]
[1644600031806,0.70748845,43514.0,43510.0,0.0006864]
[1644600032501,0.98073259,43514.0,43510.0,0.0006864]
[1644600032902,0.98073259,43514.0,43507.0,0.00092515]
[1644600033101,0.98073259,43514.0,43510.0,0.0006864]
[1644600033604,0.70748845,43514.0,43510.0,0.0006864]
[1644600034059,0.70748845,43514.0,43507.0,0.00092515]
[1644600034060,0.98229635,43514.0,43507.0,0.00092515]
[1644600034255,0.98229635,43514.0,43510.0,0.0006864]
[1644600035058,0.70748845,43514.0,43510.0,0.0006864]
[1644600035258,0.70748845,43514.0,43507.0,0.00092515]
[1644600035461,0.70748845,43514.0,43510.0,0.00068588]
[1644600035960,0.70748845,43514.0,43512.0,0.00074237]
[1644600036565,0.00071044,43511.0,43510.0,0.06993387]
[1644600036864,0.50071044,43511.0,43510.0,0.06993387]
[1644600037060,0.50071044,43511.0,43510.0,0.11993387]
[1644600037709,0.50071044,43511.0,43510.0,0.05]
[1644600038304,0.65071044,43511.0,43510.0,0.05]
[1644600038503,0.65071044,43511.0,43508.0,0.0002272]
[1644600039005,0.65071044,43511.0,43505.0,0.00020565]
[1644600039006,0.05749181,43510.0,43505.0,0.00020565]
[1644600039208,0.33001489,43510.0,43507.0,0.00022772]
[1644600039505,0.15749181,43510.0,43507.0,0.00022772]
[1644600039906,0.1,43510.0,43507.0,0.00022772]
[1644600040106,0.1,43510.0,43504.0,0.46098758]
[1644600040306,0.1,43510.0,43505.0,0.00020565]
[1644600040505,0.05071044,43511.0,43504.0,0.46098758]
[1644600040709,0.5,43510.0,43504.0,0.51098758]
[1644600040906,0.00071044,43511.0,43509.0,0.19387094]
[1644600041555,0.00071044,43511.0,43504.0,0.51098758]
[1644600042356,0.00071044,43511.0,43505.0,0.0458]
[1644600042655,0.00071044,43511.0,43509.0,0.21840588]
[1644600042857,0.00071044,43511.0,43510.0,0.0958]
[1644600049759,0.00071044,43511.0,43510.0,0.05]
[1644600049959,0.00071044,43511.0,43505.0,0.0006856]
[1644600050962,0.00071044,43511.0,43504.0,0.3897623]
[1644600051161,0.00071044,43511.0,43505.0,0.00068558]
[1644600051362,0.00071044,43511.0,43506.0,0.05]
[1644600051562,0.00071044,43511.0,43507.0,0.103266]
[1644600051963,0.00071044,43511.0,43509.0,0.20981016]
[1644600052362,0.00071044,43511.0,43510.0,0.05]
[1644600053005,0.37717206,43506.0,43505.0,0.00068559]
[1644600053308,0.37717206,43506.0,43505.0,0.08540578]
[1644600053506,0.37717206,43506.0,43505.0,0.13120578]
[1644600053906,0.37717206,43506.0,43505.0,0.37106416]
[1644600054303,0.37717206,43506.0,43505.0,0.42106416]
[1644600054905,0.37717206,43506.0,43505.0,0.18120578]
[1644600055304,0.36997972,43506.0,43505.0,0.13540578]
[1644600055704,0.36971897,43506.0,43505.0,0.13540578]
[1644600056107,0.36971897,43506.0,43504.0,0.00020366]
[1644600056108,0.37212232,43506.0,43504.0,0.00020366]
[1644600056308,0.37212232,43506.0,43503.0,0.00068592]
[1644600056309,0.52212232,43506.0,43503.0,0.00088958]
[1644600056555,0.47720786,43506.0,43503.0,0.00088958]
[1644600056756,0.42720786,43506.0,43503.0,0.00068592]
[1644600056955,0.42720786,43506.0,43500.0,0.0001]
[1644600057157,0.71818319,43506.0,43504.0,0.36518311]
[1644600057359,0.42720786,43506.0,43504.0,0.36518311]
[1644600057556,1.35240335,43505.0,43500.0,0.0001]
[1644600057758,1.4,43505.0,43500.0,0.0001]
[1644600057958,0.00240335,43501.0,43500.0,0.0001]
[1644600058356,0.05750589,43502.0,43500.0,0.0001]